bitfinex/quotes_BTCUSD_20250730
["timestamp","ask_amount","ask_price","bid_price","bid_amount"]
[1753861268825,0.80442206,118390.0,118380.0,0.5764467]
[1753861269037,0.89734594,118390.0,118380.0,0.5764467]
[1753861269541,0.89734587,118390.0,118380.0,0.5764467]
[1753861269757,0.89734587,118390.0,118380.0,0.26786353]
[1753861269997,0.90579252,118390.0,118380.0,0.26786353]
[1753861272572,0.8973458,118390.0,118380.0,0.26786353]
[1753861273221,0.89731831,118390.0,118380.0,0.26786353]
[1753861273827,0.87454172,118390.0,118380.0,0.26786353]
[1753861274629,0.88298837,118390.0,118380.0,0.26786353]
[1753861275397,0.87454172,118390.0,118380.0,0.26786353]
[1753861275608,0.8829883,118390.0,118380.0,0.26786353]
[1753861275821,0.8829883,118390.0,118380.0,0.5764467]
[1753861276038,0.8829883,118390.0,118380.0,0.26786353]
[1753861277162,0.88298823,118390.0,118380.0,0.26786353]
[1753861277582,0.89143488,118390.0,118380.0,0.26786353]
[1753861277806,0.89143481,118390.0,118380.0,0.26786353]
[1753861278665,0.89142905,118390.0,118380.0,0.26786353]
[1753861278877,0.88298247,118390.0,118380.0,0.26786353]
[1753861279105,0.86608938,118390.0,118380.0,0.26786353]
[1753861279328,0.7647197,118390.0,118380.0,0.5764467]
[1753861279766,0.75491578,118390.0,118380.0,0.5764467]
[1753861280185,0.75291578,118390.0,118380.0,0.5764467]
[1753861280395,0.74446977,118390.0,118380.0,0.5764467]
[1753861280874,0.74246977,118390.0,118380.0,0.5764467]
[1753861281111,0.82694707,118390.0,118380.0,0.5764467]
[1753861281564,0.74246977,118390.0,118380.0,0.5764467]
[1753861282205,0.74246977,118390.0,118380.0,0.74539415]
[1753861282448,0.40246977,118390.0,118380.0,0.82073589]
[1753861282661,0.71707377,118390.0,118380.0,0.82918276]
[1753861282879,0.37707377,118390.0,118380.0,0.82073589]
[1753861283089,0.37707377,118390.0,118380.0,0.82918283]
[1753861283312,0.37707377,118390.0,118380.0,0.8376297]
[1753861283533,0.37707377,118390.0,118380.0,0.82918283]
[1753861283739,0.37707377,118390.0,118380.0,0.8291829]
[1753861283951,0.41900902,118390.0,118380.0,0.82073596]
[1753861284174,0.41900902,118390.0,118380.0,0.82173604]
[1753861284400,0.41900276,118390.0,118380.0,0.82373604]
[1753861284900,0.40518211,118390.0,118380.0,0.82373604]
[1753861285144,0.40518211,118390.0,118380.0,0.83218319]
[1753861285382,0.40518211,118390.0,118380.0,0.84063027]
[1753861285611,0.36324686,118390.0,118380.0,0.84063027]
[1753861286032,0.36324686,118390.0,118380.0,0.83218261]
[1753861286446,0.36324686,118390.0,118380.0,0.80684137]
[1753861286657,0.36324686,118390.0,118380.0,0.49825834]
[1753861286866,0.40548854,118390.0,118380.0,0.62944669]
[1753861287281,0.40548854,118390.0,118380.0,0.79839414]
[1753861287690,0.40548854,118390.0,118380.0,0.62944669]
[1753861287924,0.43087554,118390.0,118380.0,0.32086352]
[1753861288132,0.43087554,118390.0,118380.0,0.49825827]
[1753861288336,0.43087554,118390.0,118380.0,0.49825834]
[1753861288516,0.43087554,118390.0,118380.0,0.79839414]
[1753861288792,0.43087554,118390.0,118380.0,0.80684144]
[1753861289003,0.43087554,118390.0,118380.0,0.62944669]
[1753861289209,0.43932155,118390.0,118380.0,0.62944669]
[1753861289416,0.78524289,118390.0,118380.0,0.32086352]
[1753861290282,0.77679688,118390.0,118380.0,0.32086352]
[1753861290493,0.77087554,118390.0,118380.0,0.32086352]
[1753861290707,0.77087554,118390.0,118380.0,0.49825827]
[1753861290913,0.77087554,118390.0,118380.0,0.62944669]
[1753861291358,0.77932155,118390.0,118380.0,0.62944669]
[1753861291562,0.78524225,118390.0,118380.0,0.32086352]
[1753861291775,0.77679624,118390.0,118380.0,0.32086352]
[1753861292450,0.77679631,118390.0,118380.0,0.32086352]
[1753861293093,0.78524232,118390.0,118380.0,0.32086352]
[1753861293304,0.77679631,118390.0,118380.0,0.32086352]
[1753861293522,0.78524232,118390.0,118380.0,0.32086352]
[1753861293712,0.77679631,118390.0,118380.0,0.32082352]
[1753861294165,0.78524232,118390.0,118380.0,0.62940669]
[1753861294381,0.79313656,118390.0,118380.0,0.62940669]
[1753861295227,0.78469055,118390.0,118380.0,0.63785399]
[1753861295435,0.78469055,118390.0,118380.0,0.80680144]
[1753861295634,0.78469055,118390.0,118380.0,0.81524867]
[1753861295845,0.78469055,118390.0,118380.0,0.80680144]
[1753861296042,0.78469055,118390.0,118380.0,0.80680151]
[1753861296459,0.78469055,118390.0,118380.0,0.81524881]
[1753861296664,0.78469055,118390.0,118380.0,0.79835414]
[1753861296871,0.78469055,118390.0,118380.0,0.32082352]
[1753861297079,0.80158271,118390.0,118380.0,0.32082352]
[1753861297276,0.79313656,118390.0,118380.0,0.32082352]
[1753861297466,0.79313663,118390.0,118380.0,0.32082352]
[1753861298516,0.79313656,118390.0,118380.0,0.32082352]
[1753861299189,0.81002894,118390.0,118380.0,0.32082352]
[1753861300076,0.81847538,118390.0,118380.0,0.32082352]
[1753861300291,0.81002894,118390.0,118380.0,0.32082352]
[1753861300506,0.80158264,118390.0,118380.0,0.32082352]
[1753861300720,0.81002894,118390.0,118380.0,0.32082352]
[1753861301331,0.80158264,118390.0,118380.0,0.32082352]
[1753861301737,0.81002894,118390.0,118380.0,0.32082352]
[1753861302180,0.81004343,118390.0,118380.0,0.32082352]
[1753861303275,0.84486319,118390.0,118380.0,0.16329352]
[1753861303514,1.14803028,118390.0,118380.0,0.29177352]
[1753861303778,0.83100053,118390.0,118380.0,0.29177352]
[1753861303990,0.83944704,118390.0,118380.0,0.29177352]
[1753861305046,0.83641697,118390.0,118380.0,0.29177352]
[1753861305918,0.82797053,118390.0,118380.0,0.29177352]
[1753861306145,0.83641704,118390.0,118380.0,0.29177352]
[1753861306871,0.82797053,118390.0,118380.0,0.24177353]
[1753861307086,0.82797053,118390.0,118380.0,0.29177352]
[1753861307296,0.83641704,118390.0,118380.0,0.29177352]
[1753861307531,0.82797053,118390.0,118380.0,0.29177352]
[1753861307752,0.83641704,118390.0,118380.0,0.29177352]
[1753861307973,0.82797053,118390.0,118380.0,0.29177352]
[1753861308194,0.82797053,118390.0,118380.0,0.24177353]
[1753861308409,0.82797053,118390.0,118380.0,0.29177352]
[1753861309393,0.82797024,118390.0,118380.0,0.29177352]
[1753861309602,0.81952394,118390.0,118380.0,0.29177352]
[1753861309826,0.78677786,118390.0,118380.0,0.31865352]
[1753861310048,0.78677786,118390.0,118380.0,0.63043669]
[1753861310267,0.79522387,118390.0,118380.0,0.63043669]
[1753861310475,0.80367002,118390.0,118380.0,0.63043669]
[1753861310681,0.79522387,118390.0,118380.0,0.63043669]
[1753861310892,0.80367002,118390.0,118380.0,0.63043669]
[1753861311110,0.81211632,118390.0,118380.0,0.32185352]
[1753861311764,0.8269552,118390.0,118380.0,0.32185352]
[1753861312219,0.8354015,118390.0,118380.0,0.32185352]
[1753861312437,0.8269552,118390.0,118380.0,0.32185352]
[1753861314315,0.82699707,118390.0,118380.0,0.32185352]
[1753861316255,0.81855092,118390.0,118380.0,0.32185352]
[1753861316462,0.82699707,118390.0,118380.0,0.32185352]
[1753861318866,0.82699707,118390.0,118380.0,0.55339524]
[1753861320890,0.82699707,118390.0,118380.0,0.32185352]
[1753861321115,0.83544337,118390.0,118380.0,0.55339524]
[1753861321576,0.82699707,118390.0,118380.0,0.55339524]
[1753861322968,1.07849196,118390.0,118380.0,0.21077353]
[1753861323191,1.0784921,118390.0,118380.0,0.21077353]
[1753861323644,1.07849203,118390.0,118380.0,0.21077353]
[1753861324520,1.07849203,118390.0,118380.0,0.08229353]
[1753861324781,1.24742521,118390.0,118380.0,0.21077353]
[1753861325475,1.23897906,118390.0,118380.0,0.21077353]
[1753861326387,1.00743734,118390.0,118380.0,0.21077353]
[1753861326661,1.23897906,118390.0,118380.0,0.21077353]
[1753861327135,1.23106286,118390.0,118380.0,0.21077353]
[1753861327345,1.23897939,118390.0,118380.0,0.21077353]
[1753861328008,1.0585392,118390.0,118380.0,0.26077352]
[1753861328217,1.06698557,118390.0,118380.0,0.29107352]
[1753861328649,0.84389043,118390.0,118380.0,0.29107352]
[1753861328871,0.84389036,118390.0,118380.0,0.24107353]
[1753861329111,0.84389036,118390.0,118380.0,0.29107352]
[1753861329303,0.83544385,118390.0,118380.0,0.29107352]
[1753861329547,0.84389079,118390.0,118380.0,0.29107352]
[1753861329784,0.82805839,118390.0,118380.0,0.29107352]
[1753861330006,0.84389121,118390.0,118380.0,0.29107352]
[1753861330482,0.85233786,118390.0,118380.0,0.29107352]
[1753861330674,0.84389121,118390.0,118380.0,0.29107352]
[1753861330928,0.82699826,118390.0,118380.0,0.29107352]
[1753861331122,0.83544477,118390.0,118380.0,0.29107352]
[1753861331343,0.82699826,118390.0,118380.0,0.29107352]
[1753861331552,0.83544477,118390.0,118380.0,0.29107352]
[1753861332325,0.83544477,118390.0,118380.0,0.31583352]
[1753861333394,0.83544477,118390.0,118380.0,0.26583353]
[1753861333597,0.83544477,118390.0,118380.0,0.31583352]
[1753861334636,1.00437795,118390.0,118380.0,0.31583352]
[1753861334866,1.00437795,118390.0,118380.0,0.26583353]
[1753861335070,1.00437795,118390.0,118380.0,0.31583352]
[1753861335297,1.00438056,118390.0,118380.0,0.31583352]
[1753861336189,0.99593433,118390.0,118380.0,0.31583352]
[1753861337489,0.99593439,118390.0,118380.0,0.31583352]
[1753861337940,0.99593455,118390.0,118380.0,0.31583352]
[1753861338383,1.2190299,118390.0,118380.0,0.26583353]
[1753861338593,1.23727082,118390.0,118380.0,0.24107353]
[1753861339034,1.24027082,118390.0,118380.0,0.08229353]
[1753861339256,1.24027082,118390.0,118380.0,0.21073353]
[1753861344309,1.0087291,118390.0,118380.0,0.21073353]
[1753861344541,1.24027082,118390.0,118380.0,0.21073353]
[1753861344892,1.0087291,118390.0,118380.0,0.21073353]
[1753861345110,1.23727082,118390.0,118380.0,0.26073352]
[1753861345787,1.0057291,118390.0,118380.0,0.29333352]
[1753861346002,1.0057291,118390.0,118380.0,0.32215352]
[1753861346821,1.0057291,118390.0,118380.0,0.55369524]
[1753861348292,1.0057291,118390.0,118380.0,0.50369525]
[1753861348508,1.0057291,118390.0,118380.0,0.55369524]
[1753861349144,1.4432291,118390.0,118380.0,0.55369524]
[1753861349633,1.4432291,118390.0,118380.0,0.50369525]
[1753861349863,1.4432291,118390.0,118380.0,0.55369524]
[1753861351584,1.4432291,118390.0,118380.0,0.50369525]
[1753861351788,1.4432291,118390.0,118380.0,0.55369524]
[1753861353029,1.4432291,118390.0,118380.0,0.32215352]
[1753861353694,1.67477082,118390.0,118380.0,0.31899352]
[1753861353914,1.67477082,118390.0,118380.0,0.24333353]
[1753861355414,1.67477082,118390.0,118380.0,0.21073353]
[1753861356848,1.6747574,118390.0,118380.0,0.21073353]
[1753861358699,1.6747574,118390.0,118380.0,0.26073352]
[1753861358918,1.67474927,118390.0,118380.0,0.29253352]
[1753861359299,1.67474927,118390.0,118380.0,0.24253353]
[1753861359511,1.67475,118390.0,118380.0,0.29253352]
[1753861359735,1.44320828,118390.0,118380.0,0.29253352]
[1753861359953,1.67475,118390.0,118380.0,0.29253352]
[1753861360150,1.67475,118390.0,118380.0,0.31611352]
[1753861362367,1.65892464,118390.0,118380.0,0.26611353]
[1753861362563,1.67475474,118390.0,118380.0,0.31611352]
[1753861363445,1.67475474,118390.0,118380.0,0.26611353]
[1753861363667,1.66630823,118390.0,118380.0,0.31611352]
[1753861363893,1.66630823,118390.0,118380.0,0.29253352]
[1753861365033,1.66630823,118390.0,118380.0,0.24253353]
[1753861365294,1.66630823,118390.0,118380.0,0.29253352]
[1753861365970,1.66630823,118390.0,118380.0,0.24253353]
[1753861366391,1.66630823,118390.0,118380.0,0.29253352]
[1753861366832,1.66630823,118390.0,118380.0,0.21073353]
[1753861367039,1.66930823,118390.0,118380.0,0.21073353]
[1753861367252,1.43776651,118390.0,118380.0,0.21073353]
[1753861367467,1.66630823,118390.0,118380.0,0.21073353]
[1753861368651,1.66630823,118390.0,118380.0,0.22603353]
[1753861369468,1.43476651,118390.0,118380.0,0.22603353]
[1753861369673,1.66630823,118390.0,118380.0,0.24213353]
[1753861369877,1.66630823,118390.0,118380.0,0.26541353]
[1753861370108,1.66630823,118390.0,118380.0,0.31541352]
[1753861370527,1.66630823,118390.0,118380.0,0.31737352]
[1753861373315,1.66631392,118390.0,118380.0,0.31737352]
[1753861374261,1.66631392,118390.0,118380.0,0.32038352]
[1753861374953,1.66631392,118390.0,118380.0,0.27038353]
[1753861375175,1.66631392,118390.0,118380.0,0.32038352]
[1753861375402,1.66631388,118390.0,118380.0,0.32038352]
[1753861375829,1.43477216,118390.0,118380.0,0.32038352]
[1753861376260,1.66631388,118390.0,118380.0,0.27038353]
[1753861376489,1.66631388,118390.0,118380.0,0.32038352]
[1753861376917,1.66631388,118390.0,118380.0,0.27038353]
[1753861377133,1.66631388,118390.0,118380.0,0.32038352]
[1753861377565,1.44321867,118390.0,118380.0,0.32038352]
[1753861377825,1.41994867,118390.0,118380.0,0.55192524]
[1753861378026,1.41994867,118390.0,118380.0,0.32038352]
[1753861378681,1.41994867,118390.0,118380.0,0.55192524]
[1753861378925,1.41994867,118390.0,118380.0,0.50192525]
[1753861379156,1.41994867,118390.0,118380.0,0.55192524]
[1753861379373,1.41994867,118390.0,118380.0,0.32038352]
[1753861380384,1.26790794,118390.0,118380.0,0.32038352]
[1753861380386,1.28480096,118390.0,118380.0,0.55192524]
[1753861380593,1.27635488,118390.0,118380.0,0.55192524]
[1753861381004,1.43684176,118390.0,118380.0,0.55192524]
[1753861381208,1.42839539,118390.0,118380.0,0.55192524]
[1753861381822,1.42839539,118390.0,118380.0,0.32038352]
[1753861382423,1.25946221,118390.0,118380.0,0.55192524]
[1753861383051,1.42839539,118390.0,118380.0,0.55192524]
[1753861383308,1.24049898,118390.0,118380.0,0.55192524]
[1753861383521,1.1982573,118390.0,118380.0,0.78346696]
[1753861383726,1.20670331,118390.0,118380.0,0.78346696]
[1753861383941,1.1969166,118390.0,118380.0,0.78346696]
[1753861384176,1.18847052,118390.0,118380.0,0.78346696]
[1753861384385,1.19691667,118390.0,118380.0,0.78346696]
[1753861384790,1.18847052,118390.0,118380.0,0.78346696]
[1753861385860,1.18002451,118390.0,118380.0,0.78346696]
[1753861386253,1.18002451,118390.0,118380.0,0.95241441]
[1753861386455,1.18002451,118390.0,118380.0,0.78346696]
[1753861386594,1.18002451,118390.0,118380.0,0.79191419]
[1753861387004,1.18002451,118390.0,118380.0,0.79191426]
[1753861387466,1.18002451,118390.0,118380.0,0.79191433]
[1753861387896,1.18002451,118390.0,118380.0,0.56037261]
[1753861388123,1.25918259,118390.0,118380.0,0.79191433]
[1753861390025,1.25918259,118390.0,118380.0,0.78346696]
[1753861390248,1.2676286,118390.0,118380.0,0.55192524]
[1753861390499,1.25918259,118390.0,118380.0,0.55192524]
[1753861390706,1.2676286,118390.0,118380.0,0.55192524]
[1753861392256,1.27607475,118390.0,118380.0,0.55192524]
[1753861392902,1.28452105,118390.0,118380.0,0.55192524]
[1753861396013,1.29296742,118390.0,118380.0,0.32038352]
[1753861396225,1.29296742,118390.0,118380.0,0.55192524]
[1753861396445,1.28452105,118390.0,118380.0,0.55192524]
[1753861396856,1.2845173,118390.0,118380.0,0.55192524]
[1753861397550,1.276071,118390.0,118380.0,0.55192524]
[1753861397776,1.2845173,118390.0,118380.0,0.55192524]
[1753861398016,1.28451723,118390.0,118380.0,0.55192524]
[1753861398450,1.2929636,118390.0,118380.0,0.55192524]
[1753861399132,1.29296353,118390.0,118380.0,0.55192524]
[1753861400042,1.28451723,118390.0,118380.0,0.55192524]
[1753861400260,1.19691292,118390.0,118380.0,0.55192524]
[1753861400507,1.20535915,118390.0,118380.0,0.55192524]
[1753861401216,1.21380545,118390.0,118380.0,0.32038352]
[1753861401416,1.21380545,118390.0,118380.0,0.55192524]
[1753861402240,1.21380167,118390.0,118380.0,0.55192524]
[1753861402445,1.18846299,118390.0,118380.0,0.55192524]
[1753861402649,1.18846299,118390.0,118380.0,0.78346696]
[1753861402860,1.18001698,118390.0,118380.0,0.96086178]
[1753861403062,0.84001698,118390.0,118380.0,0.98620296]
[1753861403282,0.82419063,118390.0,118380.0,0.98620296]
[1753861403490,0.84001598,118390.0,118380.0,0.98620296]
[1753861403877,0.84001563,118390.0,118380.0,0.98620296]
[1753861404192,0.83209733,118390.0,118380.0,0.98620296]
[1753861405086,0.83209544,118390.0,118380.0,0.98620296]
[1753861405496,0.82616144,118390.0,118380.0,0.98620296]
[1753861407266,0.38866144,118390.0,118380.0,0.98620296]
[1753861411613,0.38866144,118390.0,118380.0,1.07068026]
[1753861411843,0.35353401,118390.0,118380.0,1.30222198]
[1753861412060,0.33771,118390.0,118380.0,1.30222198]
[1753861412511,0.33771,118390.0,118380.0,1.07068026]
[1753861413395,0.33771,118390.0,118380.0,1.06868026]
[1753861413818,0.33771,118390.0,118380.0,1.07068026]
[1753861414256,0.33771,118390.0,118380.0,1.07168026]
[1753861417322,0.33771,118390.0,118380.0,1.320671]
[1753861418227,0.33771,118390.0,118380.0,1.316671]
[1753861418438,0.33771,118390.0,118380.0,1.318671]
[1753861420211,0.33771,118390.0,118380.0,1.320671]
[1753861426702,0.33771,118390.0,118380.0,1.32971825]
[1753861426916,0.33771,118390.0,118380.0,1.320671]
[1753861429261,0.33771,118390.0,118380.0,0.62604584]
[1753861429465,0.33771,118390.0,118380.0,1.320671]
[1753861447050,0.33771,118390.0,118380.0,1.523631]
[1753861453330,0.33771,118390.0,118380.0,2.21825616]
[1753861453559,0.02487,118410.0,118380.0,2.18446761]
[1753861453781,0.02487,118410.0,118400.0,0.27625587]
[1753861454004,0.02691,118410.0,118400.0,0.95237661]
[1753861455571,0.02691,118410.0,118400.0,0.95437661]
[1753861455984,0.050251,118420.0,118410.0,0.24423947]
[1753861456241,0.05148835,118420.0,118410.0,0.95156021]
[1753861457162,0.03565516,118420.0,118410.0,0.95156021]
[1753861457587,0.03665516,118420.0,118410.0,0.95156021]
[1753861457927,0.02791,118420.0,118410.0,0.48847677]
[1753861458141,0.02791,118420.0,118410.0,0.97972021]
[1753861458356,0.02691,118420.0,118410.0,0.97972021]
[1753861459628,0.02691,118420.0,118410.0,0.97658021]
[1753861459849,0.02691,118420.0,118410.0,0.95355021]
[1753861460058,0.02691,118420.0,118410.0,0.95156021]
[1753861461564,0.02691,118420.0,118410.0,1.15452021]
[1753861462031,0.02691,118420.0,118410.0,0.92297849]
[1753861462278,0.02691,118420.0,118410.0,0.89177849]
[1753861463350,0.02691,118420.0,118410.0,0.89277849]
[1753861465803,0.02691,118420.0,118410.0,0.91643849]
[1753861468209,0.02691,118420.0,118410.0,0.92177849]
[1753861470764,0.02691,118420.0,118410.0,0.93747849]
[1753861471787,0.02691,118420.0,118410.0,0.92177849]
[1753861476015,0.02691,118420.0,118410.0,0.6733471]
[1753861476188,0.02691,118420.0,118410.0,0.66960185]
[1753861476364,0.04191,118420.0,118410.0,0.90114357]
[1753861476975,0.04191,118420.0,118410.0,0.77266357]
[1753861477184,0.04191,118420.0,118410.0,0.90118357]
[1753861480014,0.04191,118420.0,118410.0,0.66119712]
[1753861480223,0.29197172,118420.0,118410.0,0.60275234]
[1753861480434,0.30779921,118420.0,118410.0,0.60275234]
[1753861480641,0.30779921,118420.0,118410.0,0.61119743]
[1753861480847,0.07625749,118420.0,118410.0,0.60275234]
[1753861481058,0.07625749,118420.0,118410.0,0.47423234]
[1753861481266,0.07625749,118420.0,118410.0,0.66960243]
[1753861481910,0.07625749,118420.0,118410.0,0.66115742]
[1753861482116,0.07625749,118420.0,118410.0,0.60271234]
[1753861482321,0.07625749,118420.0,118410.0,0.61115743]
[1753861482979,0.07626265,118420.0,118410.0,0.4169173]
[1753861483191,0.32469233,118420.0,118410.0,0.33272]
[1753861483430,0.31624824,118420.0,118410.0,0.33272]
[1753861483636,0.32469226,118420.0,118410.0,0.33272]
[1753861484275,0.30780437,118420.0,118410.0,0.38271999]
[1753861484480,0.30780437,118420.0,118410.0,0.39116522]
[1753861484672,0.31624824,118420.0,118410.0,0.38271999]
[1753861485106,0.30780437,118420.0,118410.0,0.39116522]
[1753861485314,0.34110177,118420.0,118410.0,0.38271999]
[1753861485472,0.34954564,118420.0,118410.0,0.38271999]
[1753861485689,0.34110177,118420.0,118410.0,0.39116522]
[1753861485990,0.34110177,118420.0,118410.0,0.38271999]
[1753861486331,0.34954571,118420.0,118410.0,0.38271999]
[1753861486742,0.34162831,118420.0,118410.0,0.38271999]
[1753861486954,0.34110224,118420.0,118410.0,0.39116522]
[1753861487572,0.34110224,118420.0,118410.0,0.38271999]
[1753861487773,0.34110224,118420.0,118410.0,0.39116522]
[1753861488319,0.33318437,118420.0,118410.0,0.39116522]
[1753861488734,0.33006437,118420.0,118410.0,0.39961038]
[1753861489911,0.33006437,118420.0,118410.0,0.39116522]
[1753861490126,0.33006437,118420.0,118410.0,0.38271999]
[1753861490343,0.33850824,118420.0,118410.0,0.38271999]
[1753861490878,0.33850824,118420.0,118410.0,0.33272]
[1753861491298,0.42553243,118420.0,118410.0,0.38271999]
[1753861491939,0.42553243,118420.0,118410.0,0.37818838]
[1753861492964,0.43344877,118420.0,118410.0,0.32818839]
[1753861493422,0.43344877,118420.0,118410.0,0.37818838]
[1753861493848,0.44189279,118420.0,118410.0,0.32818839]
[1753861494300,0.3580186,118420.0,118410.0,0.32818839]
[1753861494535,0.35801852,118420.0,118410.0,0.32818839]
[1753861494681,0.35801852,118420.0,118410.0,0.37818838]
[1753861494889,0.35801861,118420.0,118410.0,0.37818838]
[1753861495133,0.35801861,118420.0,118410.0,0.17975999]
[1753861495717,0.35486861,118420.0,118410.0,0.17975999]
[1753861496034,0.43934591,118420.0,118410.0,0.12976]
[1753861496856,0.43934591,118420.0,118410.0,0.17975999]
[1753861497095,0.43934591,118420.0,118410.0,0.12976]
[1753861497467,0.43934636,118420.0,118410.0,0.12976]
[1753861498074,0.44779045,118420.0,118410.0,0.12976]
[1753861498326,0.43934636,118420.0,118410.0,0.12976]
[1753861500097,0.19091683,118420.0,118410.0,0.18820522]
[1753861500341,0.39205855,118420.0,118410.0,0.19665038]
[1753861500708,0.39205855,118420.0,118410.0,0.18820522]
[1753861500910,0.39205855,118420.0,118410.0,0.17975999]
[1753861501336,0.39205855,118420.0,118410.0,0.21993024]
[1753861501515,0.39205855,118420.0,118410.0,0.3972799]
[1753861501516,0.30758125,118420.0,118410.0,0.3972799]
[1753861501833,0.07603953,118420.0,118410.0,0.20825999]
[1753861502261,0.3135239,118420.0,118410.0,0.20825999]
[1753861502666,0.32196784,118420.0,118410.0,0.20303999]
[1753861504696,0.3135239,118420.0,118410.0,0.20303999]
[1753861504922,0.3135239,118420.0,118410.0,0.21148515]
[1753861505136,0.08198218,118420.0,118410.0,0.21993024]
[1753861505344,0.07994218,118420.0,118410.0,0.46513697]
[1753861505551,0.07994218,118420.0,118410.0,0.64248656]
[1753861505762,0.05711218,118420.0,118410.0,0.65093136]
[1753861506018,0.05711218,118420.0,118410.0,0.65093143]
[1753861506235,0.05711218,118420.0,118410.0,0.62559661]
[1753861506445,0.05711218,118420.0,118410.0,0.63404162]
[1753861506652,0.05711218,118420.0,118410.0,0.64248656]
[1753861506860,0.05711218,118420.0,118410.0,0.63404162]
[1753861507095,0.05711218,118420.0,118410.0,0.64248656]
[1753861507316,0.05711218,118420.0,118410.0,0.67438656]
[1753861507534,0.05711218,118420.0,118410.0,0.66594162]
[1753861507758,0.0571229,118420.0,118410.0,0.66594162]
[1753861508333,0.0571229,118420.0,118410.0,0.67438656]
[1753861508544,0.0550829,118420.0,118410.0,0.67438656]
[1753861510671,0.0550829,118420.0,118410.0,0.65749661]
[1753861510874,0.0550829,118420.0,118410.0,0.66594162]
[1753861512074,0.13889665,118420.0,118410.0,0.66594162]
[1753861512513,0.13889665,118420.0,118410.0,0.65749661]
[1753861512929,0.13889665,118420.0,118410.0,0.66594162]
[1753861513148,0.13890356,118420.0,118410.0,0.48014694]
[1753861513845,0.05508981,118420.0,118410.0,0.4885921]
[1753861514091,0.05508981,118420.0,118410.0,0.24860522]
[1753861514314,0.05508981,118420.0,118410.0,0.48014694]
[1753861514529,0.05508981,118420.0,118410.0,0.4885921]
[1753861514758,0.05508981,118420.0,118410.0,0.48014694]
[1753861515175,0.05508981,118420.0,118410.0,0.4885921]
[1753861516979,0.06796473,118420.0,118410.0,0.47170171]
[1753861517168,0.06796473,118420.0,118410.0,0.48014694]
[1753861517709,0.06796473,118420.0,118410.0,0.4885921]
[1753861519219,0.05508981,118420.0,118410.0,0.4885921]
[1753861520236,0.05508981,118420.0,118410.0,0.67438678]
[1753861520598,0.03924516,118420.0,118410.0,0.67438685]
[1753861520806,0.05509482,118420.0,118410.0,0.48014694]
[1753861521237,0.05509482,118420.0,118410.0,0.4885921]
[1753861521819,0.05509482,118420.0,118410.0,0.49703719]
[1753861522426,0.05509482,118420.0,118410.0,0.4885921]
[1753861523460,0.05509482,118420.0,118410.0,0.49703719]
[1753861523928,0.05509482,118420.0,118410.0,0.47170171]
[1753861524226,0.05509482,118420.0,118410.0,0.48014694]
[1753861524756,0.06353869,118420.0,118410.0,0.47170171]
[1753861525453,0.05509482,118420.0,118410.0,0.48014694]
[1753861525669,0.05509482,118420.0,118410.0,0.47170171]
[1753861526098,0.05509482,118420.0,118410.0,0.48014694]
[1753861526310,0.05509482,118420.0,118410.0,0.47170171]
[1753861526527,0.05509482,118420.0,118410.0,0.48014687]
[1753861526731,0.05509482,118420.0,118410.0,0.48014694]
[1753861526932,0.05509482,118420.0,118410.0,0.47170171]
[1753861528196,0.05509482,118420.0,118410.0,0.48014694]
[1753861528405,0.05509482,118420.0,118410.0,0.49703719]
[1753861528600,0.05509482,118420.0,118410.0,0.4885921]
[1753861528830,0.05509482,118420.0,118410.0,0.25705038]
[1753861529035,0.05509482,118420.0,118410.0,0.4885921]
[1753861529246,0.05509482,118420.0,118410.0,0.48014694]
[1753861529461,0.05509916,118420.0,118410.0,0.48014694]
[1753861529829,0.05509916,118420.0,118410.0,0.24015999]
[1753861529996,0.05509916,118420.0,118410.0,0.47170171]
[1753861530393,0.05509916,118420.0,118410.0,0.48014687]
[1753861531023,0.05509916,118420.0,118410.0,0.48859196]
[1753861531220,0.05509916,118420.0,118410.0,0.24015999]
[1753861531457,0.05509916,118420.0,118410.0,0.47170171]
[1753861532089,0.05509916,118420.0,118410.0,0.48014694]
[1753861532527,0.05509916,118420.0,118410.0,0.24860522]
[1753861532817,0.15433124,118420.0,118410.0,0.24015999]
[1753861532934,0.15433124,118420.0,118410.0,0.47170171]
[1753861533143,0.15433124,118420.0,118410.0,0.24015999]
[1753861533354,0.15433117,118420.0,118410.0,0.47170171]
[1753861533839,0.15433117,118420.0,118410.0,0.24015999]
[1753861534051,0.15433117,118420.0,118410.0,0.47170171]
[1753861535188,0.17121956,118420.0,118410.0,0.0614]
[1753861535394,0.40276128,118420.0,118410.0,0.1581]
[1753861535618,0.40492128,118420.0,118410.0,0.1581]
[1753861535820,0.42089698,118420.0,118410.0,0.1581]
[1753861537346,0.42089698,118420.0,118410.0,0.1296]
[1753861537585,0.85627973,118420.0,118410.0,0.1296]
[1753861537894,1.18783564,118420.0,118410.0,0.17959999]
[1753861538324,1.17939148,118420.0,118410.0,0.17959999]
[1753861540986,0.94782955,118420.0,118410.0,0.17959999]
[1753861543177,0.94782146,118420.0,118410.0,0.17959999]
[1753861544526,0.75242523,118420.0,118410.0,0.17959999]
[1753861544735,0.76086974,118420.0,118410.0,0.17959999]
[1753861545158,0.52932802,118420.0,118410.0,0.17959999]
[1753861545379,0.52088351,118420.0,118410.0,0.17959999]
[1753861545599,0.52932738,118420.0,118410.0,0.20437999]
[1753861546057,0.53777182,118420.0,118410.0,0.20437999]
[1753861546674,0.53777175,118420.0,118410.0,0.20437999]
[1753861547090,0.52088322,118420.0,118410.0,0.43908171]
[1753861547312,0.53777168,118420.0,118410.0,0.43908171]
[1753861547515,0.77775791,118420.0,118410.0,0.20753999]
[1753861547723,0.7693134,118420.0,118410.0,0.20753999]
[1753861548210,0.52932731,118420.0,118410.0,0.20753999]
[1753861549023,0.53777175,118420.0,118410.0,0.20753999]
[1753861549469,0.52932731,118420.0,118410.0,0.20753999]
[1753861550523,0.53777175,118420.0,118410.0,0.20753999]
[1753861551925,0.53777175,118420.0,118410.0,0.43908171]
[1753861552601,0.53777175,118420.0,118410.0,0.20753999]
[1753861553906,0.52932724,118420.0,118410.0,0.20753999]
[1753861554987,0.76086896,118420.0,118410.0,0.20753999]
[1753861556111,0.76931333,118420.0,118410.0,0.20753999]
[1753861556568,0.77775784,118420.0,118410.0,0.20437999]
[1753861556781,0.76931333,118420.0,118410.0,0.17959999]
[1753861556994,0.77775784,118420.0,118410.0,0.17959999]
[1753861557212,0.76931333,118420.0,118410.0,0.17959999]
[1753861557914,0.92442569,118420.0,118410.0,0.05099999]
[1753861558118,1.18736741,118420.0,118410.0,0.12964]
[1753861558605,1.17892318,118420.0,118410.0,0.12964]
[1753861560178,1.4104649,118420.0,118410.0,0.12968]
[1753861560403,0.71583974,118420.0,118410.0,0.12968]
[1753861560932,1.17892318,118420.0,118410.0,0.12968]
[1753861561161,1.17891518,118420.0,118410.0,0.12868]
[1753861561395,1.19715483,118420.0,118410.0,0.12868]
[1753861561621,1.19915483,118420.0,118410.0,0.12868]
[1753861562309,1.20215483,118420.0,118410.0,0.12868]
[1753861563412,0.73907139,118420.0,118410.0,0.12868]
[1753861563750,1.20215483,118420.0,118410.0,0.12868]